[Event "23rd ETCC Women 2021"]
[Site "Catez"]
[Date "2021.11.15"]
[Round "4.12"]
[White "Socko, Monika"]
[Black "Motycakova, Monika"]
[Result "1-0"]
[ECO "A22"]
[WhiteElo "2393"]
[BlackElo "2119"]
[Annotator "NA"]
[PlyCount "55"]
[EventDate "2021.11.08"]
[EventType "team-tourn"]
[EventCountry "SLO"]
[SourceTitle "playchess.com"]
[Source "ChessBase"]
[SourceQuality "1"]
[WhiteTeam "Poland"]
[BlackTeam "Slovakia"]
[WhiteTeamCountry "POL"]
[BlackTeamCountry "SVK"]
[TimeControl "40/5400+30:1800+30"]

1. c4 {[%emt 0:00:03]} e5 {[%emt 0:00:07]} 2. g3 {[%emt 0:00:22]} Nf6 {[%emt 0:
00:19]} 3. Bg2 {[%emt 0:00:05]} d5 {[%emt 0:00:20]} 4. cxd5 {[%emt 0:00:04]}
Nxd5 {[%emt 0:00:06]} 5. Nc3 {[%emt 0:00:06]} Nb6 {[%emt 0:00:12]} 6. e3 {
[%emt 0:00:11]} c5 {[%emt 0:14:10]} 7. Nge2 {[%emt 0:03:27]} Nc6 {[%emt 0:01:
02]} 8. O-O {[%emt 0:01:35]} Be7 {[%emt 0:00:22]} 9. f4 {[%emt 0:05:15]} exf4 {
[%emt 0:10:18]} 10. Nxf4 {[%emt 0:00:33]} O-O {[%emt 0:00:06]} 11. b3 {[%emt 0:
01:25]} Bf5 {[%emt 0:13:34]} 12. Bb2 {[%emt 0:07:00]} Qd7 {[%emt 0:04:56]} 13.
Ncd5 {[%emt 0:13:01]} Nxd5 {[%emt 0:06:53]} 14. Nxd5 {[%emt 0:05:33]} Bd6 {
[%emt 0:02:55]} 15. Rc1 {[%emt 0:11:30]} Nb4 {[%emt 0:13:40]} 16. Qf3 {[%emt 0:
13:29]} Nxd5 {[%emt 0:05:33]} 17. Qxd5 {[%emt 0:05:23]} Be6 {[%emt 0:11:24]}
18. Qxb7 {[%emt 0:00:54]} Qxb7 {[%emt 0:01:57]} 19. Bxb7 {[%emt 0:00:03]} Rab8
{[%emt 0:00:04]} 20. Ba6 {[%emt 0:00:08]} Bh3 {[%emt 0:06:50]} 21. Rf2 {
[%emt 0:01:27]} Rb6 {[%emt 0:01:12]} 22. Bc4 {[%emt 0:02:09]} h5 {[%emt 0:00:
12]} 23. Be2 {[%emt 0:08:49]} h4 {[%emt 0:01:32]} 24. gxh4 {[%emt 0:00:12]} Be7
{[%emt 0:00:32]} 25. h5 {[%emt 0:00:03]} f5 {[%emt 0:02:52]} 26. Ba3 {[%emt 0:
02:48]} g6 {[%emt 0:01:12]} 27. Bxc5 {[%emt 0:02:43]} Bxc5 {[%emt 0:00:25]} 28.
Rxc5 {[%emt 0:00:04]} 1-0

[Event "23rd ETCC Women 2021"]
[Site "Catez"]
[Date "2021.11.15"]
[Round "4.13"]
[White "Ushenina, Anna"]
[Black "Vega Gutierrez, Sabrina"]
[Result "1/2-1/2"]
[ECO "D35"]
[WhiteElo "2426"]
[BlackElo "2394"]
[Annotator "NA"]
[PlyCount "73"]
[EventDate "2021.11.08"]
[EventType "team-tourn"]
[EventCountry "SLO"]
[SourceTitle "playchess.com"]
[Source "ChessBase"]
[SourceQuality "1"]
[WhiteTeam "Ukraine"]
[BlackTeam "Spain"]
[WhiteTeamCountry "UKR"]
[BlackTeamCountry "ESP"]
[TimeControl "40/5400+30:1800+30"]

1. d4 {[%emt 0:00:03]} d5 {[%emt 0:00:07]} 2. c4 {[%emt 0:00:25]} e6 {[%emt 0:
00:10]} 3. Nc3 {[%emt 0:00:20]} Nf6 {[%emt 0:00:15]} 4. cxd5 {[%emt 0:00:18]}
exd5 {[%emt 0:00:08]} 5. Bg5 {[%emt 0:00:14]} Be7 {[%emt 0:00:20]} 6. e3 {
[%emt 0:01:30]} c6 {[%emt 0:00:14]} 7. Bd3 {[%emt 0:00:31]} Nbd7 {[%emt 0:00:
23]} 8. Nge2 {[%emt 0:00:24]} Nf8 {[%emt 0:00:43]} 9. O-O {[%emt 0:02:27]} Ne6
{[%emt 0:00:16]} 10. Bh4 {[%emt 0:00:40]} O-O {[%emt 0:00:45]} 11. Qb1 {
[%emt 0:02:33]} g6 {[%emt 0:00:46]} 12. b4 {[%emt 0:00:17]} a6 {[%emt 0:01:13]}
13. a4 {[%emt 0:00:41]} Ng7 {[%emt 0:13:56]} 14. b5 {[%emt 0:01:42]} axb5 {
[%emt 0:15:06]} 15. axb5 {[%emt 0:00:14]} Bf5 {[%emt 0:02:54]} 16. Bxf5 {
[%emt 0:29:12]} Nxf5 {[%emt 0:00:15]} 17. Bxf6 {[%emt 0:03:34]} Bxf6 {[%emt 0:
00:07]} 18. bxc6 {[%emt 0:00:23]} bxc6 {[%emt 0:05:17]} 19. Qb7 {[%emt 0:02:13]
} Qc8 {[%emt 0:01:23]} 20. Qxc8 {[%emt 0:12:55]} Rfxc8 {[%emt 0:00:49]} 21. Nf4
{[%emt 0:02:00]} Bg5 {[%emt 0:04:17]} 22. Nce2 {[%emt 0:02:21]} Bxf4 {[%emt 0:
10:41]} 23. Nxf4 {[%emt 0:00:03]} h5 {[%emt 0:03:17]} 24. Nd3 {[%emt 0:01:33]}
Kg7 {[%emt 0:01:37]} 25. g3 {[%emt 0:04:48]} Kf8 {[%emt 0:16:24]} 26. Ne5 {
[%emt 0:09:15]} Rxa1 {[%emt 0:04:56]} 27. Rxa1 {[%emt 0:00:05]} Rc7 {[%emt 0:
00:04]} 28. Ra8+ {[%emt 0:04:33]} Kg7 {[%emt 0:00:35]} 29. h3 {[%emt 0:04:04]}
c5 {[%emt 0:08:48]} 30. dxc5 {[%emt 0:00:18]} d4 {[%emt 0:02:28]} 31. exd4 {
[%emt 0:13:18]} Nxd4 {[%emt 0:00:09]} 32. Rd8 {[%emt 0:00:03]} Rxc5 {[%emt 0:
04:05]} 33. Nd3 {[%emt 0:00:59]} Ne6 {[%emt 0:00:42]} 34. Rd6 {[%emt 0:00:43]}
Rc8 {[%emt 0:00:35]} 35. Ne5 {[%emt 0:00:10]} Rc5 {[%emt 0:01:20]} 36. Nd3 {
[%emt 0:01:17]} Rc8 {[%emt 0:00:05]} 37. Ne5 {[%emt 0:00:35]} 1/2-1/2

[Event "23rd ETCC Women 2021"]
[Site "Catez"]
[Date "2021.11.15"]
[Round "4.14"]
[White "Garcia Martin, Marta"]
[Black "Buksa, Nataliya"]
[Result "0-1"]
[ECO "B30"]
[WhiteElo "2324"]
[BlackElo "2410"]
[Annotator "ChessBase"]
[PlyCount "108"]
[EventDate "2021.11.08"]
[EventType "team-tourn"]
[EventCountry "SLO"]
[SourceTitle "playchess.com"]
[Source "ChessBase"]
[SourceQuality "1"]
[WhiteTeam "Spain"]
[BlackTeam "Ukraine"]
[WhiteTeamCountry "ESP"]
[BlackTeamCountry "UKR"]
[TimeControl "40/5400+30:1800+30"]

1. e4 {[%emt 0:00:03]} c5 {[%emt 0:00:09]} 2. Nc3 {[%emt 0:00:07]} Nc6 {
[%emt 0:00:06]} 3. Bb5 {[%emt 0:00:12]} Nd4 {[%emt 0:00:04]} 4. Nf3 {[%emt 0:
00:13]} e6 {[%emt 0:00:20]} 5. O-O {[%emt 0:00:18]} a6 {[%emt 0:00:04]} 6. Bd3
{[%emt 0:00:07]} Nc6 {[%emt 0:00:06]} 7. Nd5 {[%emt 0:01:16]} d6 {[%emt 0:05:
17]} 8. Ne3 {[%emt 0:00:32]} Nf6 {[%emt 0:03:38]} 9. c3 {[%emt 0:03:20]} d5 {
[%emt 0:07:20]} 10. exd5 {[%emt 0:03:38]} Nxd5 {[%emt 0:00:04]} 11. Nxd5 {
[%emt 0:04:37]} exd5 {[%emt 0:01:56]} 12. Re1+ {[%emt 0:08:13]} Be7 {[%emt 0:
24:00]} 13. Bc2 {[%emt 0:16:52]} Bg4 {[%emt 0:02:51]} 14. a3 {[%emt 0:20:30]}
O-O {[%emt 0:10:29]} 15. d4 {[%emt 0:01:14]} Bxf3 {[%emt 0:00:04]} 16. Qxf3 {
[%emt 0:00:11]} cxd4 {[%emt 0:00:03]} 17. Qd3 {[%emt 0:16:48]} g6 {[%emt 0:00:
04]} 18. cxd4 {[%emt 0:00:04]} Bf6 {[%emt 0:09:39]} 19. Bh6 {[%emt 0:02:00]}
Re8 {[%emt 0:00:48]} 20. Rxe8+ {[%emt 0:00:12]} Qxe8 {[%emt 0:00:03]} 21. Be3 {
[%emt 0:00:13]} Qd8 {[%emt 0:00:57]} 22. Bb3 {[%emt 0:03:02]} Na5 {[%emt 0:05:
43]} 23. Rc1 {[%emt 0:01:16]} b5 {[%emt 0:02:14]} 24. Bd1 {[%emt 0:05:14]} Nc4
{[%emt 0:01:29]} 25. Qc3 {[%emt 0:01:27]} Qb6 {[%emt 0:07:38]} 26. Bf3 {
[%emt 0:00:53]} Rd8 {[%emt 0:00:03]} 27. b3 {[%emt 0:02:06]} Nxe3 {[%emt 0:03:
02]} 28. fxe3 {[%emt 0:00:11]} Qe6 {[%emt 0:00:15]} 29. Qd3 {[%emt 0:03:41]}
Bg5 {[%emt 0:06:14]} 30. Kf2 {[%emt 0:03:20]} Qd6 {[%emt 0:01:31]} 31. Rc5 {
[%emt 0:01:14]} Qxh2 {[%emt 0:01:15]} 32. Rxd5 {[%emt 0:00:28]} Bh4+ {[%emt 0:
00:51]} 33. Ke2 {[%emt 0:00:05]} Re8 {[%emt 0:00:03]} 34. e4 {[%emt 0:03:06]}
Qg3 {[%emt 0:00:15]} 35. Kd1 {[%emt 0:00:43]} Qe1+ {[%emt 0:00:41]} 36. Kc2 {
[%emt 0:00:04]} Be7 {[%emt 0:00:04]} 37. b4 {[%emt 0:00:57]} Rc8+ {[%emt 0:01:
35]} 38. Rc5 {[%emt 0:00:22]} Bxc5 {[%emt 0:00:03]} 39. bxc5 {[%emt 0:00:21]}
h5 {[%emt 0:01:17]} 40. e5 {[%emt 0:00:23]} a5 {[%emt 0:06:40]} 41. Qxb5 {
[%emt 0:13:06]} Qf2+ {[%emt 0:02:05]} 42. Kc3 {[%emt 0:00:16]} Qe1+ {[%emt 0:
04:38]} 43. Kc2 {[%emt 0:00:36]} Qf2+ {[%emt 0:02:10]} 44. Kc3 {[%emt 0:00:08]}
Qe1+ {[%emt 0:08:20]} 45. Kc2 {[%emt 0:00:07]} Rd8 {[%emt 0:05:32]} 46. d5 {
[%emt 0:10:36]} Qxe5 {[%emt 0:00:28]} 47. Qxa5 {[%emt 0:00:08]} Rb8 {[%emt 0:
01:34]} 48. Qc3 {[%emt 0:00:25]} Qf5+ {[%emt 0:00:06]} 49. Kd2 {[%emt 0:00:22]}
Qb1 {[%emt 0:00:16]} 50. Bd1 {[%emt 0:01:19]} Qa2+ {[%emt 0:00:06]} 51. Ke1 {
[%emt 0:04:31]} Qxg2 {[%emt 0:00:43]} 52. Qe5 {[%emt 0:00:28]} Rb2 {[%emt 0:00:
07]} 53. Qe8+ {[%emt 0:00:35]} Kg7 {[%emt 0:00:03]} 54. Qe5+ {[%emt 0:00:08]}
Kh7 {[%emt 0:00:04]} 0-1

[Event "23rd ETCC Women 2021"]
[Site "Catez"]
[Date "2021.11.15"]
[Round "4.15"]
[White "Gaponenko, Inna"]
[Black "Matnadze, Ana"]
[Result "1/2-1/2"]
[ECO "B56"]
[WhiteElo "2339"]
[BlackElo "2418"]
[Annotator "NA"]
[PlyCount "78"]
[EventDate "2021.11.08"]
[EventType "team-tourn"]
[EventCountry "SLO"]
[SourceTitle "playchess.com"]
[Source "ChessBase"]
[SourceQuality "1"]
[WhiteTeam "Ukraine"]
[BlackTeam "Spain"]
[WhiteTeamCountry "UKR"]
[BlackTeamCountry "ESP"]
[TimeControl "40/5400+30:1800+30"]

1. e4 {[%emt 0:00:03]} c5 {[%emt 0:00:05]} 2. Nf3 {[%emt 0:00:05]} d6 {[%emt 0:
00:05]} 3. d4 {[%emt 0:00:04]} cxd4 {[%emt 0:00:05]} 4. Nxd4 {[%emt 0:00:06]}
Nf6 {[%emt 0:00:04]} 5. Nc3 {[%emt 0:00:10]} Bd7 {[%emt 0:00:12]} 6. f3 {
[%emt 0:18:09]} e5 {[%emt 0:05:09]} 7. Nb3 {[%emt 0:02:18]} Be7 {[%emt 0:00:47]
} 8. Be3 {[%emt 0:03:26]} O-O {[%emt 0:00:47]} 9. Qd2 {[%emt 0:03:43]} a5 {
[%emt 0:03:04]} 10. a4 {[%emt 0:21:29]} Be6 {[%emt 0:06:00]} 11. Be2 {[%emt 0:
20:53]} d5 {[%emt 0:06:13]} 12. exd5 {[%emt 0:00:53]} Nxd5 {[%emt 0:01:46]} 13.
Nxd5 {[%emt 0:00:15]} Bxd5 {[%emt 0:00:57]} 14. O-O-O {[%emt 0:07:30]} Bxb3 {
[%emt 0:03:46]} 15. Qxd8 {[%emt 0:00:05]} Rxd8 {[%emt 0:00:30]} 16. Rxd8+ {
[%emt 0:00:06]} Bxd8 {[%emt 0:00:03]} 17. Rd1 {[%emt 0:00:17]} Nc6 {[%emt 0:04:
49]} 18. cxb3 {[%emt 0:00:05]} Nd4 {[%emt 0:06:22]} 19. Bxd4 {[%emt 0:00:36]}
Bg5+ {[%emt 0:00:46]} 20. Kc2 {[%emt 0:10:04]} exd4 {[%emt 0:00:18]} 21. Rxd4 {
[%emt 0:00:04]} Kf8 {[%emt 0:24:03]} 22. b4 {[%emt 0:03:34]} b6 {[%emt 0:03:32]
} 23. bxa5 {[%emt 0:02:01]} bxa5 {[%emt 0:01:03]} 24. b4 {[%emt 0:00:02]} Rd8 {
[%emt 0:11:51]} 25. Rxd8+ {[%emt 0:04:26]} Bxd8 {[%emt 0:00:02]} 26. bxa5 {
[%emt 0:00:29]} Bxa5 {[%emt 0:01:08]} 27. Kd3 {[%emt 0:00:29]} Ke7 {[%emt 0:00:
07]} 28. Kc4 {[%emt 0:01:42]} Kd6 {[%emt 0:00:11]} 29. Kb5 {[%emt 0:00:14]} Bd2
{[%emt 0:00:33]} 30. a5 {[%emt 0:00:28]} Be3 {[%emt 0:00:18]} 31. a6 {[%emt 0:
01:07]} h6 {[%emt 0:00:44]} 32. Bc4 {[%emt 0:00:18]} f6 {[%emt 0:00:49]} 33. h4
{[%emt 0:00:45]} g5 {[%emt 0:02:01]} 34. h5 {[%emt 0:00:30]} f5 {[%emt 0:01:29]
} 35. g4 {[%emt 0:00:04]} fxg4 {[%emt 0:00:18]} 36. fxg4 {[%emt 0:00:05]} Bf2 {
[%emt 0:00:35]} 37. Bg8 {[%emt 0:00:48]} Ba7 {[%emt 0:00:14]} 38. Kc4 {[%emt 0:
00:02]} Ke5 {[%emt 0:00:29]} 39. Kb5 {[%emt 0:00:33]} Kd6 {[%emt 0:00:05]}
1/2-1/2

[Event "23rd ETCC Women 2021"]
[Site "Catez"]
[Date "2021.11.15"]
[Round "4.16"]
[White "Eizaguerri Floris, Maria"]
[Black "Zhukova, Natalia"]
[Result "1/2-1/2"]
[ECO "C78"]
[WhiteElo "2328"]
[BlackElo "2331"]
[Annotator "NA"]
[PlyCount "65"]
[EventDate "2021.11.08"]
[EventType "team-tourn"]
[EventCountry "SLO"]
[SourceTitle "playchess.com"]
[Source "ChessBase"]
[SourceQuality "1"]
[WhiteTeam "Spain"]
[BlackTeam "Ukraine"]
[WhiteTeamCountry "ESP"]
[BlackTeamCountry "UKR"]
[TimeControl "40/5400+30:1800+30"]

1. e4 {[%emt 0:00:02]} e5 {[%emt 0:00:10]} 2. Nf3 {[%emt 0:00:06]} Nc6 {
[%emt 0:00:12]} 3. Bb5 {[%emt 0:00:08]} a6 {[%emt 0:00:16]} 4. Ba4 {[%emt 0:00:
04]} Nf6 {[%emt 0:00:22]} 5. O-O {[%emt 0:00:12]} b5 {[%emt 0:00:33]} 6. Bb3 {
[%emt 0:00:05]} Bc5 {[%emt 0:00:09]} 7. a4 {[%emt 0:00:17]} Rb8 {[%emt 0:00:15]
} 8. c3 {[%emt 0:00:10]} d6 {[%emt 0:00:20]} 9. d4 {[%emt 0:00:07]} Bb6 {
[%emt 0:00:14]} 10. a5 {[%emt 0:00:12]} Ba7 {[%emt 0:00:14]} 11. h3 {[%emt 0:
00:07]} O-O {[%emt 0:00:42]} 12. Be3 {[%emt 0:00:12]} Nxe4 {[%emt 0:10:56]} 13.
Bd5 {[%emt 0:18:36]} exd4 {[%emt 0:00:27]} 14. Bxc6 {[%emt 0:09:06]} dxe3 {
[%emt 0:00:51]} 15. Bxe4 {[%emt 0:00:38]} exf2+ {[%emt 0:00:57]} 16. Kh1 {
[%emt 0:00:11]} Re8 {[%emt 0:13:19]} 17. Qd3 {[%emt 0:14:38]} Qf6 {[%emt 0:06:
00]} 18. Nd4 {[%emt 0:09:56]} c5 {[%emt 0:35:20]} 19. Nc6 {[%emt 0:17:18]} Bb7
{[%emt 0:25:12]} 20. Nd2 {[%emt 0:04:41]} Qh4 {[%emt 0:02:20]} 21. Bd5 {
[%emt 0:15:50]} c4 {[%emt 0:01:27]} 22. Qf5 {[%emt 0:00:45]} Bxc6 {[%emt 0:00:
31]} 23. Qxf7+ {[%emt 0:01:13]} Kh8 {[%emt 0:00:01]} 24. Bxc6 {[%emt 0:00:47]}
Re7 {[%emt 0:00:01]} 25. Qf5 {[%emt 0:02:38]} d5 {[%emt 0:01:35]} 26. Nf3 {
[%emt 0:01:30]} Qf6 {[%emt 0:00:18]} 27. Qxf6 {[%emt 0:02:01]} gxf6 {[%emt 0:
00:01]} 28. Bxd5 {[%emt 0:00:10]} Rd8 {[%emt 0:00:17]} 29. Bc6 {[%emt 0:00:23]}
Rd6 {[%emt 0:00:36]} 30. Ba8 {[%emt 0:00:20]} Rd8 {[%emt 0:00:18]} 31. Bc6 {
[%emt 0:00:14]} Rd6 {[%emt 0:00:33]} 32. Ba8 {[%emt 0:02:42]} Rd8 {[%emt 0:00:
11]} 33. Bc6 {[%emt 0:00:37]} 1/2-1/2

[Event "23rd ETCC Women 2021"]
[Site "Catez"]
[Date "2021.11.15"]
[Round "4.17"]
[White "Paehtz, Elisabeth"]
[Black "Mammadzada, Gunay"]
[Result "1/2-1/2"]
[ECO "B22"]
[WhiteElo "2485"]
[BlackElo "2459"]
[Annotator "ChessBase"]
[PlyCount "111"]
[EventDate "2021.11.08"]
[EventType "team-tourn"]
[EventCountry "SLO"]
[SourceTitle "playchess.com"]
[Source "ChessBase"]
[SourceQuality "1"]
[WhiteTeam "Germany"]
[BlackTeam "Azerbaijan"]
[WhiteTeamCountry "GER"]
[BlackTeamCountry "AZE"]
[TimeControl "40/5400+30:1800+30"]

1. e4 {[%emt 0:00:02]} c5 {[%emt 0:00:06]} 2. c3 {[%emt 0:00:04]} Nf6 {[%emt 0:
00:16]} 3. e5 {[%emt 0:00:04]} Nd5 {[%emt 0:00:06]} 4. d4 {[%emt 0:00:05]} cxd4
{[%emt 0:00:51]} 5. cxd4 {[%emt 0:00:03]} d6 {[%emt 0:00:07]} 6. Nf3 {[%emt 0:
00:05]} Nc6 {[%emt 0:00:03]} 7. Bc4 {[%emt 0:00:05]} dxe5 {[%emt 0:02:53]} 8.
dxe5 {[%emt 0:00:05]} Ndb4 {[%emt 0:02:42]} 9. O-O {[%emt 0:00:31]} Qxd1 {
[%emt 0:30:35]} 10. Rxd1 {[%emt 0:00:04]} Bg4 {[%emt 0:06:27]} 11. Nc3 {
[%emt 0:00:57]} e6 {[%emt 0:09:09]} 12. Be2 {[%emt 0:00:11]} Be7 {[%emt 0:07:
08]} 13. Bf4 {[%emt 0:00:12]} Rc8 {[%emt 0:04:41]} 14. Rac1 {[%emt 0:19:09]}
Nb8 {[%emt 0:03:54]} 15. h3 {[%emt 0:02:16]} Bh5 {[%emt 0:00:50]} 16. Nb5 {
[%emt 0:12:51]} Rxc1 {[%emt 0:03:10]} 17. Bxc1 {[%emt 0:07:01]} O-O {[%emt 0:
06:00]} 18. g4 {[%emt 0:05:50]} Bg6 {[%emt 0:00:01]} 19. a3 {[%emt 0:00:14]}
N4c6 {[%emt 0:00:35]} 20. Be3 {[%emt 0:02:42]} b6 {[%emt 0:01:19]} 21. Rc1 {
[%emt 0:05:30]} Rd8 {[%emt 0:04:25]} 22. Nc7 {[%emt 0:06:25]} Bd3 {[%emt 0:09:
48]} 23. Bxd3 {[%emt 0:01:13]} Rxd3 {[%emt 0:00:01]} 24. Na6 {[%emt 0:02:00]}
Nxa6 {[%emt 0:01:11]} 25. Rxc6 {[%emt 0:00:05]} Nb8 {[%emt 0:02:09]} 26. Rc2 {
[%emt 0:05:08]} Rd5 {[%emt 0:02:26]} 27. Rc8+ {[%emt 0:14:04]} Rd8 {[%emt 0:00:
01]} 28. Rc3 {[%emt 0:00:08]} Rd5 {[%emt 0:01:46]} 29. Bg5 {[%emt 0:03:37]} f6
{[%emt 0:01:13]} 30. Bf4 {[%emt 0:00:46]} Na6 {[%emt 0:00:41]} 31. b4 {[%emt 0:
01:03]} Kf7 {[%emt 0:00:21]} 32. Kg2 {[%emt 0:04:30]} g5 {[%emt 0:00:42]} 33.
Be3 {[%emt 0:01:05]} h6 {[%emt 0:00:01]} 34. exf6 {[%emt 0:00:40]} Bxf6 {
[%emt 0:00:01]} 35. Rc8 {[%emt 0:00:13]} Rd7 {[%emt 0:00:52]} 36. Ra8 {[%emt 0:
01:52]} Rb7 {[%emt 0:01:02]} 37. Rc8 {[%emt 0:05:57]} Rc7 {[%emt 0:00:30]} 38.
Ra8 {[%emt 0:00:22]} Rb7 {[%emt 0:00:03]} 39. h4 {[%emt 0:01:39]} Nc7 {[%emt 0:
00:01]} 40. Rc8 {[%emt 0:00:03]} Nd5 {[%emt 0:00:05]} 41. Bc1 {[%emt 0:06:19]}
Ne7 {[%emt 0:08:35]} 42. Rc4 {[%emt 0:03:22]} Kg6 {[%emt 0:09:11]} 43. Re4 {
[%emt 0:03:23]} Rc7 {[%emt 0:00:16]} 44. Bd2 {[%emt 0:00:16]} Rc6 {[%emt 0:03:
07]} 45. hxg5 hxg5 {[%emt 0:00:02]} 46. Bxg5 {[%emt 0:06:20]} Rd6 {[%emt 0:06:
00]} 47. Bf4 {[%emt 0:04:22]} Rd3 {[%emt 0:02:39]} 48. Rxe6 {[%emt 0:01:24]}
Kf7 {[%emt 0:00:02]} 49. Re3 {[%emt 0:00:34]} Nd5 {[%emt 0:00:08]} 50. Re4 {
[%emt 0:00:33]} Rxa3 {[%emt 0:00:42]} 51. Bd6 {[%emt 0:03:20]} Rb3 {[%emt 0:01:
48]} 52. g5 {[%emt 0:01:44]} Bc3 {[%emt 0:01:22]} 53. Nd4 {[%emt 0:03:37]} Rb2
{[%emt 0:00:23]} 54. Nc6 {[%emt 0:00:44]} Kg6 {[%emt 0:02:02]} 55. Be5 {
[%emt 0:01:40]} Kxg5 {[%emt 0:01:01]} 56. Bxc3 {[%emt 0:00:28]} 1/2-1/2

[Event "23rd ETCC Women 2021"]
[Site "Catez"]
[Date "2021.11.15"]
[Round "4.18"]
[White "Mammadova, Gulnar"]
[Black "Heinemann, Josefine"]
[Result "1-0"]
[ECO "B22"]
[WhiteElo "2395"]
[BlackElo "2336"]
[Annotator "ChessBase"]
[PlyCount "123"]
[EventDate "2021.11.08"]
[EventType "team-tourn"]
[EventCountry "SLO"]
[SourceTitle "playchess.com"]
[Source "ChessBase"]
[SourceQuality "1"]
[WhiteTeam "Azerbaijan"]
[BlackTeam "Germany"]
[WhiteTeamCountry "AZE"]
[BlackTeamCountry "GER"]
[TimeControl "40/5400+30:1800+30"]

1. e4 {[%emt 0:00:04]} c5 {[%emt 0:00:06]} 2. c3 {[%emt 0:00:10]} Nf6 {[%emt 0:
00:13]} 3. e5 {[%emt 0:00:17]} Nd5 {[%emt 0:00:06]} 4. Nf3 {[%emt 0:00:21]} d6
{[%emt 0:00:48]} 5. exd6 {[%emt 0:01:02]} e6 {[%emt 0:00:16]} 6. g3 {[%emt 0:
04:53]} Bxd6 {[%emt 0:04:13]} 7. Bg2 {[%emt 0:01:54]} O-O {[%emt 0:00:13]} 8.
O-O {[%emt 0:00:12]} Qc7 {[%emt 0:08:21]} 9. d4 {[%emt 0:00:54]} Nc6 {[%emt 0:
04:28]} 10. dxc5 {[%emt 0:10:03]} Bxc5 {[%emt 0:00:06]} 11. Nbd2 {[%emt 0:04:
10]} b6 {[%emt 0:07:33]} 12. c4 {[%emt 0:03:36]} Nf6 {[%emt 0:01:33]} 13. b3 {
[%emt 0:04:20]} Bb7 {[%emt 0:06:29]} 14. Bb2 {[%emt 0:00:48]} Qe7 {[%emt 0:02:
12]} 15. Ng5 {[%emt 0:08:40]} Bd4 {[%emt 0:06:39]} 16. Bxd4 {[%emt 0:03:57]}
Nxd4 {[%emt 0:02:19]} 17. Ndf3 {[%emt 0:01:05]} Nxf3+ {[%emt 0:02:28]} 18. Nxf3
{[%emt 0:00:19]} e5 {[%emt 0:04:50]} 19. Re1 {[%emt 0:00:25]} e4 {[%emt 0:03:
15]} 20. Nd2 {[%emt 0:02:42]} Rad8 {[%emt 0:02:37]} 21. Qc2 {[%emt 0:00:36]}
Rfe8 {[%emt 0:02:36]} 22. Re2 {[%emt 0:02:57]} h6 {[%emt 0:02:19]} 23. Rae1 {
[%emt 0:02:08]} Rd4 {[%emt 0:02:33]} 24. h3 {[%emt 0:03:20]} Qb4 {[%emt 0:06:
47]} 25. Kh2 {[%emt 0:08:48]} Red8 {[%emt 0:04:23]} 26. Nxe4 {[%emt 0:11:01]}
Bxe4 {[%emt 0:01:11]} 27. Bxe4 {[%emt 0:02:13]} Rd2 {[%emt 0:03:57]} 28. Qb1 {
[%emt 0:02:26]} Nxe4 {[%emt 0:02:21]} 29. Qxe4 {[%emt 0:00:14]} Qa3 {[%emt 0:
02:48]} 30. Rxd2 {[%emt 0:03:06]} Rxd2 {[%emt 0:00:07]} 31. Qa8+ {[%emt 0:01:
42]} Kh7 {[%emt 0:00:32]} 32. Qf3 {[%emt 0:00:21]} Qc5 {[%emt 0:04:32]} 33. Kg2
{[%emt 0:01:23]} Rxa2 {[%emt 0:02:48]} 34. Qxf7 {[%emt 0:01:32]} Qc6+ {[%emt 0:
00:10]} 35. Kg1 {[%emt 0:02:11]} Qf6 {[%emt 0:02:30]} 36. Qxf6 {[%emt 0:02:01]}
gxf6 {[%emt 0:00:05]} 37. g4 {[%emt 0:01:09]} Kg6 {[%emt 0:01:57]} 38. Kg2 {
[%emt 0:00:48]} Rb2 {[%emt 0:01:26]} 39. Re3 {[%emt 0:00:12]} h5 {[%emt 0:01:
00]} 40. Kg3 {[%emt 0:01:55]} hxg4 {[%emt 0:00:10]} 41. hxg4 {[%emt 0:30:06]}
f5 {[%emt 0:08:05]} 42. f3 {[%emt 0:00:00]} fxg4 {[%emt 0:00:44]} 43. Kxg4 {
[%emt 0:00:00]} Kf6 {[%emt 0:00:15]} 44. Kf4 {[%emt 0:00:00]} a5 {[%emt 0:05:
02]} 45. Ke4 {[%emt 0:00:00]} Ke6 {[%emt 0:02:53]} 46. f4 {[%emt 0:00:00]} Rf2
{[%emt 0:04:06]} 47. Rh3 {[%emt 0:00:00]} Kd6 {[%emt 0:03:21]} 48. Rf3 {
[%emt 0:00:00]} Re2+ {[%emt 0:02:51]} 49. Kd4 {[%emt 0:00:00]} Re1 {[%emt 0:01:
44]} 50. f5 {[%emt 0:00:00]} Rd1+ {[%emt 0:01:49]} 51. Kc3 {[%emt 0:00:00]} Ke5
{[%emt 0:00:26]} 52. f6 {[%emt 0:00:00]} Rd8 {[%emt 0:00:16]} 53. f7 {[%emt 0:
00:00]} Rf8 {[%emt 0:00:05]} 54. Kd3 {[%emt 0:00:00]} Rd8+ {[%emt 0:02:34]} 55.
Ke3 {[%emt 0:00:00]} Rf8 {[%emt 0:00:04]} 56. Rf1 {[%emt 0:00:11]} Kd6 {
[%emt 0:02:21]} 57. Kd4 {[%emt 0:01:01]} Ke6 {[%emt 0:00:06]} 58. Ke4 {[%emt 0:
00:05]} Kd6 {[%emt 0:00:49]} 59. Rf6+ {[%emt 0:00:33]} Kc5 {[%emt 0:00:42]} 60.
Ke5 {[%emt 0:00:45]} b5 {[%emt 0:01:18]} 61. cxb5 {[%emt 0:00:52]} Kxb5 {
[%emt 0:00:06]} 62. Rf4 {[%emt 0:00:21]} 1-0